fUSD/lending_fUSD_20250417
["ID","MTS","AMOUNT","RATE_DAILY","PERIOD"]
[358304655,1744914450211,-282.66560233,0.00019999,2]
[358304656,1744914450236,-1718.2796025,0.0002,2]
[358304657,1744914451071,-215.85964697,0.0002,2]
[358304658,1744914491453,218.39353314,0.00023,21]
[358304667,1744914547108,-217.95303434,0.000199,2]
[358304668,1744914563085,-338.78506989,0.000199,2]
[358304675,1744914631999,-319.0,0.000199,2]
[358304676,1744914632012,-1624.26189577,0.000199,2]
[358304677,1744914632022,-241.805099,0.000199,2]
[358304678,1744914632056,-758.194901,0.000199,2]
[358304679,1744914632066,-162.11189397,0.00019927,2]
[358304680,1744914632075,-502.5045184,0.00019973,2]
[358304681,1744914632085,-457.18869663,0.00019973,2]
[358304682,1744914632172,-42.81130337,0.00019973,2]
[358304683,1744914632182,-152.18,0.0001999,2]
[358304684,1744914632192,-155.39,0.0001999,2]
[358304685,1744914632202,-155.39,0.0001999,2]
[358304686,1744914632212,-155.39,0.0001999,2]
[358304687,1744914632221,-155.39,0.0001999,2]
[358304688,1744914632231,-155.39,0.0001999,2]
[358304689,1744914632241,-303.02,0.0001999,2]
[358304690,1744914632251,-303.02,0.0001999,2]
[358304691,1744914632260,-207.8723951,0.0001999,2]
[358304692,1744914632270,-300.0,0.00019998,2]
[358304693,1744914632279,-500.0,0.00019999,2]
[358304694,1744914632288,-279.13958854,0.00019999,2]
[358304695,1744914632300,-220.86041146,0.00019999,2]
[358304696,1744914632309,-500.0,0.00019999,2]
[358304697,1744914632319,-500.0,0.00019999,2]
[358304698,1744914632328,-500.0,0.00019999,2]
[358304699,1744914632338,-1000.0,0.00019999,2]
[358304700,1744914632347,-25.46957282,0.0002,2]
[358304702,1744914632359,-3332.6871248,0.0002,2]
[358304704,1744914632370,-7419.97526,0.0002,2]
[358304706,1744914632381,-1244.15535,0.0002,2]
[358304709,1744914632392,-784.01,0.0002,2]
[358304711,1744914632407,-351.841098,0.0002,2]
[358304713,1744914632419,-934.33,0.0002,2]
[358304751,1744914638204,-83874.48697725,0.0002,2]
[358304752,1744914638261,-28195.239677,0.0002,2]
[358304753,1744914638319,-654.59109121,0.0002,2]
[358304927,1744914640116,-7564.3617255,0.0002,2]
[358304929,1744914640131,-5715.12740809,0.0002,2]
[358304940,1744914640230,-1111.01355402,0.0002,2]
[358304942,1744914640242,-5561.91236038,0.0002,2]
[358304954,1744914640340,-337.32234848,0.0002,2]
[358304956,1744914640351,-407.98088,0.0002,2]
[358304958,1744914640363,-42676.41244749,0.0002,2]
[358304961,1744914640374,-1135.96567531,0.0002,2]
[358304963,1744914640386,-1234.69500997,0.0002,2]
[358304974,1744914640480,-10377.59079056,0.0002,2]
[358304976,1744914640492,-1306.11558136,0.0002,2]
[358304979,1744914640507,-82034.22391809,0.0002,2]
[358304981,1744914640519,-2643.30290429,0.0002,2]
[358304983,1744914640530,-2177.6,0.0002,2]
[358304984,1744914640542,-2681108.66254841,0.0002,2]
[358304985,1744914640551,-2000.0,0.00020027,4]
[358304986,1744914640561,-3286.74302138,0.000205,2]
[358304987,1744914640570,-1432.83718387,0.000206,2]
[358304988,1744914640580,-4957.61697837,0.000207,2]
[358304989,1744914640589,-350.0,0.00021,2]
[358304990,1744914640599,-400.0,0.0002188,2]
[358304991,1744914640609,-200.0,0.00022885,2]
[358304992,1744914640619,-400.0,0.00023,2]
[358304993,1744914640629,-5000.00657114,0.00024,5]
[358304994,1744914640638,-450.0,0.00025,2]
[358304995,1744914640648,-1881.99999941,0.00025,7]
[358304996,1744914640657,-1000.0,0.00025452,2]
[358304997,1744914640666,-1432.83718383,0.00026641,2]
[358304998,1744914640675,-4957.61697829,0.0002673,2]
[358304999,1744914640685,-500.0,0.00027,2]
[358305000,1744914640695,-301.623053,0.000277,30]
[358305001,1744914640704,-259.67904934,0.00029,2]
[358305002,1744914640714,-29997.00855451,0.0003133,2]
[358305003,1744914640723,-1432.83718383,0.00032683,2]
[358305004,1744914640733,-4957.61697829,0.00032761,2]
[358305005,1744914640742,-150.99,0.00033038,2]
[358305006,1744914640751,-150.99,0.00033038,30]
[358305007,1744914640761,-1449.85,0.00033038,2]
[358305008,1744914640770,-991.93,0.00033038,2]
[358305009,1744914640779,-884.05,0.00033038,20]
[358305010,1744914640790,-1242.83,0.00033038,10]
[358305011,1744914640799,-822.16,0.00035,120]
[358305012,1744914640808,-703.05,0.00038092,2]
[358305013,1744914640818,-509.6,0.00038356,7]
[358305014,1744914640827,-500.0,0.0003855,5]
[358305015,1744914640837,-500.0,0.0003855,5]
[358305016,1744914640846,-500.0,0.0003855,5]
[358305017,1744914640857,-500.0,0.0003855,5]
[358305018,1744914640867,-500.0,0.0003855,5]
[358305019,1744914640876,-500.0,0.0003855,5]
[358305020,1744914640886,-153.364938,0.0003855,5]
[358305021,1744914641012,-500.0,0.0003855,5]
[358305022,1744914641023,-500.0,0.0003855,5]
[358305023,1744914641032,-1432.83718383,0.00038724,2]
[358305024,1744914641042,-4957.61697829,0.00038791,2]
[358305025,1744914641051,-509.6,0.00039123,7]
[358305026,1744914641060,-155.39,0.00039716,2]
[358305027,1744914641069,-790.4196092,0.00039726,15]
[358305028,1744914641079,-790.4196092,0.00039726,15]
[358305029,1744914641088,-790.4196092,0.00039726,15]
[358305031,1744914641098,-790.4196092,0.00039726,15]
[358305034,1744914641108,-790.4196092,0.00039726,15]
[358305035,1744914641118,-790.4196092,0.00039726,15]
[358305037,1744914641127,-790.4196092,0.00039726,15]
[358305039,1744914641137,-790.4196092,0.00039726,15]
[358305041,1744914641146,-790.4196092,0.00039726,15]
[358305043,1744914641156,-790.4196092,0.00039726,15]
[358305045,1744914641169,-790.4196092,0.00039726,15]
[358305047,1744914641178,-790.4196092,0.00039726,15]
[358305049,1744914641187,-790.4196092,0.00039726,15]
[358305051,1744914641197,-790.4196092,0.00039726,15]
[358305053,1744914641207,-790.4196092,0.00039726,15]
[358305055,1744914641216,-790.4196092,0.00039726,15]
[358305057,1744914641225,-790.4196092,0.00039726,15]
[358305059,1744914641234,-790.4196092,0.00039726,15]
[358305061,1744914641244,-859.58132499,0.00039726,15]
[358305063,1744914641253,-859.58132499,0.00039726,15]
[358305065,1744914641262,-859.58132499,0.00039726,15]
[358305067,1744914641271,-859.58132499,0.00039726,15]
[358305069,1744914641281,-859.58132499,0.00039726,15]
[358305071,1744914641290,-859.58132499,0.00039726,15]
[358305073,1744914641300,-859.58132499,0.00039726,15]
[358305075,1744914641309,-859.58132499,0.00039726,15]
[358305077,1744914641318,-509.6,0.0003989,7]
[358305079,1744914641328,-162.11189394,0.00039918,2]
[358305081,1744914641337,-703.05,0.00040355,2]
[358305083,1744914641347,-509.6,0.00040658,7]
[358305085,1744914641356,-509.6,0.00041425,7]
[358305087,1744914641366,-250.0,0.0004183,2]
[358305089,1744914641376,-311.97,0.00042014,2]
[358305091,1744914641386,-509.6,0.00042192,7]
[358305093,1744914641395,-703.05,0.00042619,2]
[358305094,1744914641405,-509.6,0.00042959,7]
[358305095,1744914641415,-25385.2297,0.000432,2]
[358305096,1744914641424,-509.6,0.00043726,7]
[358305097,1744914641434,-500.0,0.00044029,10]
[358305098,1744914641444,-1000.0,0.00044029,10]
[358305099,1744914641454,-500.0,0.00044029,10]
[358305100,1744914641463,-502.29282697,0.00044029,10]
[358305101,1744914641473,-500.0,0.00044029,10]
[358305102,1744914641483,-507.65322154,0.00044029,10]
[358305103,1744914641492,-1000.0,0.00044029,10]
[358305104,1744914641502,-509.6,0.00044493,7]
[358305105,1744914641511,-1432.83718383,0.00044766,15]
[358305106,1744914641521,-4957.61697829,0.00044821,15]
[358305107,1744914641531,-703.05,0.00044883,2]
[358305108,1744914641541,-500.0,0.00045242,7]
[358305109,1744914641550,-509.6,0.0004526,7]
[358305110,1744914641559,-166.91006585,0.0004534,73]
[358305111,1744914641568,-1026.578,0.0004534,73]
[358305112,1744914641578,-8900.07354508,0.0004544,2]
[358305113,1744914641587,-703.05,0.00047147,2]
[358305114,1744914641597,-250.0,0.00047281,2]
[358305115,1744914641607,-250.0,0.00047969,90]
[358305116,1744914641617,-500.0,0.000486,120]
[358305117,1744914641626,-169.67764,0.0004897,86]
[358305118,1744914641635,-1000.0,0.00048999,30]
[358305119,1744914641644,-150.0,0.00049315,10]
[358305120,1744914641653,-6576.51,0.000494,60]
[358305121,1744914641662,-703.05,0.00049411,2]
[358305122,1744914641672,-200.0,0.00049468,7]
[358305123,1744914641682,-1000.0,0.00049643,120]
[358305124,1744914641691,-23900.0,0.0004969,2]
[358305125,1744914641701,-151.0,0.00049776,120]
[358305126,1744914641710,-12307.38805484,0.00049776,2]
[358305127,1744914641720,-219.76204166,0.00049863,10]
[358305128,1744914641729,-200.0,0.00049963,7]
[358305129,1744914641739,-491.04710682,0.00050006,120]
[358305130,1744914641750,-174.86,0.00050188,2]
[358305131,1744914641760,-19845.75,0.00050312,2]
[358305132,1744914641769,-200.0,0.00050363,2]
[358305133,1744914641779,-200.0,0.00050462,7]
[358305134,1744914641788,-1432.83718383,0.00050807,15]
[358305135,1744914641797,-4957.61697829,0.00050852,15]
[358305136,1744914641807,-200.0,0.00050967,7]
[358305137,1744914641816,-1941.34788354,0.0005104,2]
[358305138,1744914641825,-168.1,0.00051422,2]
[358305139,1744914641835,-169.67765,0.0005147,91]
[358305140,1744914641845,-200.0,0.00051477,7]
[358305141,1744914641854,-1000.0,0.00051556,30]
[358305142,1744914641864,-150.0,0.00051557,2]
[358305143,1744914641874,-6472.2,0.00051557,2]
[358305144,1744914641883,-903.25,0.00051557,120]
[358305145,1744914641893,-703.05,0.00051675,2]
[358305146,1744914641902,-254.013617,0.00052054,120]
[358305147,1744914641912,-254.013617,0.00052054,120]
[358305148,1744914641921,-282.633318,0.00052054,120]
[358305149,1744914641931,-174.004217,0.00052054,120]
[358305150,1744914641940,-174.004217,0.00052054,120]
[358305151,1744914641949,-151.463182,0.00052054,120]
[358305152,1744914641959,-284.543048,0.00052054,120]
[358305153,1744914641968,-284.543048,0.00052054,120]
[358305154,1744914641977,-254.013618,0.00052054,120]
[358305155,1744914641986,-254.013618,0.00052054,120]
[358305156,1744914641996,-282.633318,0.00052054,120]
[358305157,1744914642006,-165.550234,0.00052054,120]
[358305158,1744914642016,-165.550234,0.00052054,120]
[358305159,1744914642026,-151.602593,0.00052054,120]
[358305160,1744914642035,-254.013617,0.00052328,120]
[358305161,1744914642045,-254.013617,0.00052328,120]
[358305162,1744914642055,-174.004217,0.00052328,120]
[358305163,1744914642064,-174.004217,0.00052328,120]
[358305164,1744914642074,-284.543048,0.00052328,120]
[358305165,1744914642083,-284.543048,0.00052328,120]
[358305166,1744914642092,-254.013618,0.00052328,120]
[358305167,1744914642102,-254.013618,0.00052328,120]
[358305168,1744914642112,-165.550234,0.00052328,120]
[358305169,1744914642121,-165.550234,0.00052328,120]
[358305170,1744914642131,-476.39234977,0.0005244,2]
[358305171,1744914642140,-246.35,0.00052473,2]
[358305172,1744914642149,-6576.51,0.000525,60]
[358305173,1744914642161,-254.013617,0.00052602,120]
[358305174,1744914642171,-254.013617,0.00052602,120]
[358305175,1744914642181,-174.004217,0.00052602,120]
[358305176,1744914642190,-174.004217,0.00052602,120]
[358305177,1744914642200,-284.543048,0.00052602,120]
[358305178,1744914642210,-284.543048,0.00052602,120]
[358305179,1744914642221,-254.013618,0.00052602,120]
[358305180,1744914642231,-254.013618,0.00052602,120]
[358305181,1744914642242,-165.550234,0.00052602,120]
[358305182,1744914642252,-165.550234,0.00052602,120]
[358305183,1744914642261,-254.013617,0.00052876,120]
[358305184,1744914642270,-254.013617,0.00052876,120]
[358305185,1744914642280,-174.004217,0.00052876,120]
[358305186,1744914642290,-174.004217,0.00052876,120]
[358305187,1744914642299,-284.543048,0.00052876,120]
[358305188,1744914642309,-284.543048,0.00052876,120]
[358305189,1744914642319,-254.013618,0.00052876,120]
[358305190,1744914642329,-254.013618,0.00052876,120]
[358305191,1744914642338,-165.550234,0.00052876,120]
[358305192,1744914642348,-165.550234,0.00052876,120]
[358305193,1744914642358,-254.013617,0.0005315,120]
[358305194,1744914642368,-254.013617,0.0005315,120]
[358305195,1744914642378,-174.004217,0.0005315,120]
[358305196,1744914642387,-174.004217,0.0005315,120]
[358305197,1744914642396,-151.463182,0.0005315,120]
[358305198,1744914642406,-284.543048,0.0005315,120]
[358305199,1744914642416,-284.543048,0.0005315,120]
[358305200,1744914642426,-254.013618,0.0005315,120]
[358305201,1744914642437,-254.013618,0.0005315,120]
[358305202,1744914642447,-165.550234,0.0005315,120]
[358305203,1744914642457,-165.550234,0.0005315,120]
[358305204,1744914642467,-153.48,0.000532,51]
[358305205,1744914642476,-153.48,0.000532,51]
[358305206,1744914642486,-254.013617,0.00053424,120]
[358305207,1744914642495,-254.013617,0.00053424,120]
[358305208,1744914642505,-174.004217,0.00053424,120]
[358305209,1744914642515,-174.004217,0.00053424,120]
[358305210,1744914642524,-284.543048,0.00053424,120]
[358305211,1744914642534,-284.543048,0.00053424,120]
[358305212,1744914642544,-254.013618,0.00053424,120]
[358305213,1744914642553,-254.013618,0.00053424,120]
[358305214,1744914642563,-165.550234,0.00053424,120]
[358305215,1744914642572,-165.550234,0.00053424,120]
[358305216,1744914642582,-254.013617,0.00053698,120]
[358305217,1744914642591,-254.013617,0.00053698,120]
[358305218,1744914642601,-174.004217,0.00053698,120]
[358305219,1744914642612,-174.004217,0.00053698,120]
[358305220,1744914642623,-284.543048,0.00053698,120]
[358305221,1744914642634,-284.543048,0.00053698,120]
[358305222,1744914642646,-254.013618,0.00053698,120]
[358305223,1744914642656,-254.013618,0.00053698,120]
[358305224,1744914642665,-165.550234,0.00053698,120]
[358305225,1744914642675,-165.550234,0.00053698,120]
[358305226,1744914642684,-151.0,0.00053698,120]
[358305227,1744914642694,-169.322661,0.00053698,120]
[358305228,1744914642704,-169.322661,0.00053698,120]
[358305229,1744914642713,-151.0,0.00053698,120]
[358305230,1744914642723,-151.0,0.00053698,120]
[358305231,1744914642732,-218.945678,0.00053698,120]
[358305232,1744914642742,-218.945678,0.00053698,120]
[358305233,1744914642751,-703.05,0.00053939,2]
[358305234,1744914642761,-169.67764,0.0005397,96]
[358305235,1744914642770,-254.013617,0.00053972,120]
[358305236,1744914642780,-254.013617,0.00053972,120]
[358305237,1744914642790,-174.004217,0.00053972,120]
[358305238,1744914642799,-174.004217,0.00053972,120]
[358305239,1744914642808,-284.543048,0.00053972,120]
[358305240,1744914642818,-284.543048,0.00053972,120]
[358305241,1744914642828,-254.013618,0.00053972,120]
[358305242,1744914642838,-254.013618,0.00053972,120]
[358305243,1744914642847,-165.550234,0.00053972,120]
[358305244,1744914642857,-165.550234,0.00053972,120]
[358305245,1744914642868,-174.86,0.00054014,2]
[358305246,1744914642877,-169.0,0.00054022,30]
[358305247,1744914642887,-172.73731306,0.00054022,30]
[358305248,1744914642897,-1500.0,0.00054048,10]
[358305249,1744914642907,-316.37301979,0.00054048,10]
[358305251,1744914642916,-254.013617,0.00054246,120]
[358305252,1744914642926,-254.013617,0.00054246,120]
[358305253,1744914642935,-174.004217,0.00054246,120]
[358305254,1744914642944,-174.004217,0.00054246,120]
[358305255,1744914642954,-284.543048,0.00054246,120]
[358305256,1744914642964,-284.543048,0.00054246,120]
[358305257,1744914642975,-254.013618,0.00054246,120]
[358305258,1744914642985,-254.013618,0.00054246,120]
[358305259,1744914642995,-165.550234,0.00054246,120]
[358305260,1744914643005,-165.550234,0.00054246,120]
[358305261,1744914643014,-500.0,0.00054436,10]
[358305262,1744914643026,-254.013617,0.0005452,120]
[358305263,1744914643036,-174.004217,0.0005452,120]
[358305264,1744914643045,-151.463182,0.0005452,120]
[358305265,1744914643055,-284.543048,0.0005452,120]
[358305266,1744914643065,-254.013618,0.0005452,120]
[358305267,1744914643074,-165.550234,0.0005452,120]
[358305268,1744914643083,-632.2629958,0.00054673,10]
[358305269,1744914643093,-721.0723,0.00054673,2]
[358305270,1744914643103,-1018.0978,0.00054699,30]
[358305271,1744914643114,-1293.6604,0.000547,2]
[358305272,1744914643124,-14508.4592,0.000547,2]
[358305273,1744914643133,-2715.374,0.000547,2]
[358305274,1744914643143,-534.5893,0.000547,2]
[358305275,1744914643153,-172.7043,0.000547,2]
[358305276,1744914643165,-1538.1654,0.000547,2]
[358305277,1744914643174,-1137.3304,0.000547,2]
[358305278,1744914643184,-501.47327578,0.00054773,10]
[358305279,1744914643193,-501.53143593,0.00054773,10]
[358305280,1744914643203,-302.0894465,0.00054793,2]
[358305281,1744914643212,-4487.8323224,0.00054793,2]
[358305282,1744914643316,-2130.0708848,0.00054793,2]
[358305283,1744914643327,-304.217633,0.00054793,2]
[358305284,1744914643337,-254.013617,0.00054794,120]
[358305285,1744914643347,-254.013617,0.00054794,120]
[358305286,1744914643357,-254.013617,0.00054794,120]
[358305287,1744914643367,-174.004217,0.00054794,120]
[358305288,1744914643377,-174.004217,0.00054794,120]
[358305289,1744914643386,-174.004217,0.00054794,120]
[358305290,1744914643396,-284.543048,0.00054794,120]
[358305292,1744914643404,-284.543048,0.00054794,120]
[358305293,1744914643414,-284.543048,0.00054794,120]
[358305295,1744914643424,-254.013618,0.00054794,120]
[358305297,1744914643434,-254.013618,0.00054794,120]
[358305299,1744914643443,-254.013618,0.00054794,120]
[358305301,1744914643452,-165.550234,0.00054794,120]
[358305302,1744914643462,-165.550234,0.00054794,120]
[358305304,1744914643471,-165.550234,0.00054794,120]
[358305306,1744914643480,-500.0,0.00054799,60]
[358305308,1744914643489,-151.0,0.00054799,120]
[358305310,1744914643498,-151.0,0.00054799,120]
[358305312,1744914643507,-155.181895,0.00054799,120]
[358305314,1744914643517,-151.0,0.00054799,120]
[358305316,1744914643526,-153.803534,0.00054799,120]
[358305318,1744914643535,-151.0,0.00054799,120]
[358305320,1744914643544,-151.0,0.00054799,120]
[358305322,1744914643554,-151.0,0.00054799,120]
[358305324,1744914643563,-494.475991,0.00054799,120]
[358305325,1744914643572,-494.475991,0.00054799,120]
[358305327,1744914643582,-151.0,0.00054799,120]
[358305329,1744914643591,-151.0,0.00054799,120]
[358305333,1744914643601,-151.0,0.00054799,120]
[358305336,1744914643611,-31437.44784249,0.000548,120]
[358305338,1744914643620,-37268.81869537,0.000548,120]
[358305340,1744914643629,-200.0,0.000548,15]
[358305342,1744914643638,-200.0,0.000548,15]
[358305343,1744914643648,-151.0,0.000548,120]
[358305344,1744914643657,-151.0,0.000548,120]
[358305345,1744914643666,-426.793356,0.000548,120]
[358305346,1744914643676,-426.793356,0.000548,120]
[358305347,1744914643686,-151.0,0.000548,120]
[358305348,1744914643695,-151.0,0.000548,120]
[358305349,1744914643705,-151.0,0.000548,120]
[358305350,1744914643714,-151.0,0.000548,120]
[358305351,1744914643723,-151.0,0.000548,120]
[358305352,1744914643733,-151.0,0.000548,120]
[358305353,1744914643743,-151.0,0.000548,120]
[358305354,1744914643752,-156.587,0.000548,120]
[358305355,1744914643761,-162.380719,0.000548,120]
[358305356,1744914643771,-241.84653571,0.000548,120]
[358305357,1744914643780,-500.0,0.000548,120]
[358305358,1744914643791,-518.5,0.000548,120]
[358305359,1744914643801,-537.6845,0.000548,120]
[358305360,1744914643810,-557.5788265,0.000548,120]
[358305361,1744914643818,-578.20924308,0.000548,120]
[358305362,1744914643827,-599.60298507,0.000548,120]
[358305363,1744914643836,-621.78829552,0.000548,120]
[358305364,1744914643845,-644.79446246,0.000548,120]
[358305365,1744914643854,-668.65185757,0.000548,120]
[358305366,1744914643864,-693.3919763,0.000548,120]
[358305367,1744914643873,-719.04747942,0.000548,120]
[358305368,1744914643882,-216.77049,0.000548,120]
[358305369,1744914643892,-1262.16797456,0.000548,120]
[358305370,1744914643901,-151.83277,0.000548,120]
[358305371,1744914643911,-200.0,0.000548,120]
[358305372,1744914643920,-207.4,0.000548,120]
[358305373,1744914643929,-215.0738,0.000548,120]
[358305374,1744914643939,-223.0315306,0.000548,120]
[358305375,1744914643948,-231.28369723,0.000548,120]
[358305376,1744914643958,-239.84119403,0.000548,120]
[358305377,1744914643967,-248.71531821,0.000548,120]
[358305378,1744914643977,-257.91778498,0.000548,120]
[358305379,1744914643989,-267.46074303,0.000548,120]
[358305380,1744914643999,-277.35679052,0.000548,120]
[358305381,1744914644008,-287.61899177,0.000548,120]
[358305382,1744914644018,-298.26089446,0.000548,120]
[358305383,1744914644027,-309.29654756,0.000548,120]
[358305384,1744914644038,-320.74051982,0.000548,120]
[358305385,1744914644048,-332.60791905,0.000548,120]
[358305386,1744914644059,-344.91441206,0.000548,120]
[358305387,1744914644068,-600.0,0.000548,120]
[358305388,1744914644077,-220.804112,0.000548,120]
[358305389,1744914644086,-162.380719,0.000548,120]
[358305390,1744914644096,-200.0,0.000548,120]
[358305391,1744914644106,-167.646907,0.000548,120]
[358305392,1744914644117,-207.4,0.000548,120]
[358305393,1744914644126,-215.0738,0.000548,120]
[358305394,1744914644135,-263.10367268,0.000548,120]
[358305395,1744914644145,-151.0,0.000548,120]
[358305396,1744914644154,-494.475991,0.000548,120]
[358305397,1744914644165,-494.475991,0.000548,120]
[358305398,1744914644175,-151.0,0.000548,120]
[358305399,1744914644184,-151.0,0.000548,120]
[358305400,1744914644192,-169.322661,0.000548,120]
[358305401,1744914644203,-169.322661,0.000548,120]
[358305402,1744914644212,-151.0,0.000548,120]
[358305403,1744914644222,-218.945678,0.000548,120]
[358305404,1744914644231,-218.945678,0.000548,120]
[358305405,1744914644241,-254.013617,0.00054931,120]
[358305406,1744914644251,-174.004217,0.00054931,120]
[358305407,1744914644261,-284.543048,0.00054931,120]
[358305408,1744914644270,-254.013618,0.00054931,120]
[358305409,1744914644279,-165.550234,0.00054931,120]
[358305410,1744914644289,-891.0,0.00055,120]
[358305411,1744914644298,-254.013617,0.00055068,120]
[358305412,1744914644308,-254.013617,0.00055068,120]
[358305413,1744914644317,-254.013617,0.00055068,120]
[358305414,1744914644337,-174.004217,0.00055068,120]
[358305415,1744914644348,-174.004217,0.00055068,120]
[358305416,1744914644358,-174.004217,0.00055068,120]
[358305417,1744914644369,-284.543048,0.00055068,120]
[358305418,1744914644378,-284.543048,0.00055068,120]
[358305419,1744914644388,-284.543048,0.00055068,120]
[358305420,1744914644398,-254.013618,0.00055068,120]
[358305421,1744914644407,-254.013618,0.00055068,120]
[358305422,1744914644417,-254.013618,0.00055068,120]
[358305423,1744914644427,-165.550234,0.00055068,120]
[358305424,1744914644437,-165.550234,0.00055068,120]
[358305425,1744914644447,-165.550234,0.00055068,120]
[358305426,1744914644457,-254.013617,0.00055205,120]
[358305427,1744914644467,-174.004217,0.00055205,120]
[358305428,1744914644476,-284.543048,0.00055205,120]
[358305429,1744914644486,-254.013618,0.00055205,120]
[358305430,1744914644496,-165.550234,0.00055205,120]
[358305431,1744914644506,-860.46,0.0005525,5]
[358305432,1744914644515,-6576.51,0.000553,60]
[358305433,1744914644525,-151.0,0.000553,120]
[358305434,1744914644535,-151.0,0.000553,120]
[358305435,1744914644545,-426.793356,0.000553,120]
[358305436,1744914644555,-426.793356,0.000553,120]
[358305437,1744914644565,-169.322661,0.000553,120]
[358305438,1744914644574,-169.322661,0.000553,120]
[358305439,1744914644584,-254.013617,0.00055342,120]
[358305440,1744914644593,-254.013617,0.00055342,120]
[358305441,1744914644602,-254.013617,0.00055342,120]
[358305442,1744914644612,-174.004217,0.00055342,120]
[358305443,1744914644622,-174.004217,0.00055342,120]
[358305444,1744914644632,-174.004217,0.00055342,120]
[358305445,1744914644641,-151.463182,0.00055342,120]
[358305446,1744914644650,-284.543048,0.00055342,120]
[358305447,1744914644660,-284.543048,0.00055342,120]
[358305448,1744914644670,-284.543048,0.00055342,120]
[358305449,1744914644680,-254.013618,0.00055342,120]
[358305450,1744914644690,-254.013618,0.00055342,120]
[358305451,1744914644700,-254.013618,0.00055342,120]
[358305452,1744914644710,-165.550234,0.00055342,120]
[358305453,1744914644720,-165.550234,0.00055342,120]
[358305454,1744914644730,-165.550234,0.00055342,120]
[358305455,1744914644741,-200.0,0.00055348,15]
[358305456,1744914644751,-200.0,0.00055348,15]
[358305457,1744914644760,-151.0,0.00055348,120]
[358305458,1744914644771,-218.945678,0.00055348,120]
[358305459,1744914644781,-218.945678,0.00055348,120]
[358305460,1744914644791,-254.013617,0.00055616,120]
[358305461,1744914644800,-254.013617,0.00055616,120]
[358305462,1744914644810,-174.004217,0.00055616,120]
[358305463,1744914644820,-174.004217,0.00055616,120]
[358305464,1744914644830,-284.543048,0.00055616,120]
[358305465,1744914644844,-284.543048,0.00055616,120]
[358305466,1744914644855,-254.013618,0.00055616,120]
[358305467,1744914644866,-254.013618,0.00055616,120]
[358305468,1744914644877,-165.550234,0.00055616,120]
[358305469,1744914644887,-165.550234,0.00055616,120]
[358305470,1744914644897,-1000.0,0.00055848,120]
[358305471,1744914644907,-254.013617,0.0005589,120]
[358305472,1744914644917,-254.013617,0.0005589,120]
[358305473,1744914644927,-174.004217,0.0005589,120]
[358305474,1744914644938,-174.004217,0.0005589,120]
[358305475,1744914644949,-284.543048,0.0005589,120]
[358305476,1744914644959,-284.543048,0.0005589,120]
[358305477,1744914644969,-254.013618,0.0005589,120]
[358305478,1744914644979,-254.013618,0.0005589,120]
[358305479,1744914644989,-165.550234,0.0005589,120]
[358305480,1744914644999,-165.550234,0.0005589,120]
[358305481,1744914645009,-200.0,0.00055901,15]
[358305482,1744914645019,-200.0,0.00055901,15]
[358305483,1744914645030,-254.013617,0.00056164,120]
[358305484,1744914645039,-174.004217,0.00056164,120]
[358305485,1744914645049,-284.543048,0.00056164,120]
[358305486,1744914645059,-254.013618,0.00056164,120]
[358305487,1744914645068,-165.550234,0.00056164,120]